bitfinex/quotes_BTCUSD_20251007
["timestamp","ask_amount","ask_price","bid_price","bid_amount"]
[1759850760866,0.54358752,122350.0,122340.0,0.0355069]
[1759850761066,0.54758752,122350.0,122340.0,0.0475069]
[1759850761383,0.54458752,122350.0,122340.0,0.0375069]
[1759850761528,0.78050752,122350.0,122340.0,0.0355069]
[1759850761733,0.78450752,122350.0,122340.0,0.01301716]
[1759850761938,0.78150752,122350.0,122340.0,0.00301716]
[1759850762180,0.54358752,122350.0,122340.0,0.00101716]
[1759850762415,2.21251487,122350.0,122340.0,0.01101716]
[1759850762659,1.28255152,122350.0,122340.0,0.01301716]
[1759850763099,1.19135552,122350.0,122340.0,0.01301716]
[1759850763512,0.54758752,122350.0,122340.0,0.01301716]
[1759850763717,0.54458752,122350.0,122340.0,0.00301716]
[1759850764057,0.54758752,122350.0,122340.0,0.01101716]
[1759850764182,0.54458752,122350.0,122340.0,0.00301716]
[1759850764384,0.54358752,122350.0,122340.0,0.00101716]
[1759850764645,0.54758752,122350.0,122340.0,0.01201716]
[1759850764835,0.54458752,122350.0,122340.0,0.00401716]
[1759850765269,0.08712206,122350.0,122340.0,0.0465069]
[1759850765475,0.16746546,122350.0,122340.0,0.2834269]
[1759850765664,0.50746546,122350.0,122340.0,0.0465069]
[1759850765872,0.50746546,122350.0,122340.0,0.2834269]
[1759850766091,0.16746546,122350.0,122340.0,0.2834269]
[1759850766298,0.46946546,122350.0,122340.0,0.2834269]
[1759850766646,0.55258752,122350.0,122340.0,0.0465069]
[1759850767005,0.55258752,122350.0,122340.0,0.2834269]
[1759850767214,0.55258752,122350.0,122340.0,0.0465069]
[1759850768514,1.48355087,122350.0,122340.0,0.01201716]
[1759850769092,0.55258752,122350.0,122340.0,0.01201716]
[1759850769514,0.78946752,122350.0,122340.0,0.01201716]
[1759850771348,1.94772287,122350.0,122340.0,0.01201716]
[1759850772987,0.71072752,122350.0,122340.0,0.01201716]
[1759850773618,1.64169087,122350.0,122340.0,0.01201716]
[1759850776727,1.66623599,122350.0,122340.0,0.01201716]
[1759850777709,0.73527264,122350.0,122340.0,0.01201716]
[1759850778117,0.57713264,122350.0,122340.0,0.01201716]
[1759850778736,1.91711299,122350.0,122340.0,0.01201716]
[1759850780930,1.87711299,122350.0,122340.0,0.01201716]
[1759850781395,1.87711299,122350.0,122340.0,1e-08]
[1759850781623,0.16355904,122280.0,122270.0,0.09396749]
[1759850781834,0.2466811,122280.0,122270.0,0.23635548]
[1759850782284,0.2466811,122280.0,122270.0,0.20186574]
[1759850782473,0.2466811,122280.0,122270.0,0.1]
[1759850782694,0.2466811,122280.0,122270.0,0.13448974]
[1759850782897,0.16500294,122280.0,122270.0,0.1]
[1759850783114,0.17000294,122280.0,122270.0,0.14348974]
[1759850783361,0.17200294,122280.0,122270.0,0.14548974]
[1759850783625,0.17200294,122280.0,122270.0,0.38852897]
[1759850784072,0.17200294,122280.0,122270.0,0.42301871]
[1759850784505,0.51200294,122280.0,122270.0,0.42301871]
[1759850784935,0.17064088,122280.0,122270.0,0.66798113]
[1759850785557,0.17064088,122280.0,122270.0,0.61159113]
[1759850785902,0.17064088,122280.0,122270.0,0.57086216]
[1759850786671,0.17064088,122280.0,122270.0,0.40728974]
[1759850787387,0.17064088,122280.0,122270.0,0.57442464]
[1759850788499,0.17064088,122280.0,122270.0,0.41085222]
[1759850788723,0.13064088,122280.0,122270.0,0.41085222]
[1759850788946,0.13064088,122280.0,122270.0,0.38585222]
[1759850788947,0.2466811,122280.0,122270.0,0.38585222]
[1759850789155,0.2466811,122280.0,122270.0,0.38385222]
[1759850789367,0.2486811,122280.0,122270.0,0.38585222]
[1759850789727,0.2516811,122280.0,122270.0,0.39585222]
[1759850789943,0.2466811,122280.0,122270.0,0.37485222]
[1759850790127,0.2476811,122280.0,122270.0,0.14505222]
[1759850790331,0.2496811,122280.0,122270.0,0.38485222]
[1759850790963,0.2486811,122280.0,122270.0,0.37785222]
[1759850791863,0.2486811,122280.0,122270.0,0.46285222]
[1759850792044,0.2466811,122280.0,122270.0,0.45985222]
[1759850792424,0.2506811,122280.0,122270.0,0.46885222]
[1759850792725,0.2476811,122280.0,122270.0,0.46785222]
[1759850792937,0.2496811,122280.0,122270.0,0.46085222]
[1759850793102,0.2506811,122280.0,122270.0,0.46885222]
[1759850793340,0.2476811,122280.0,122270.0,0.46785222]
[1759850793783,0.2486811,122280.0,122270.0,0.13905222]
[1759850793994,0.2486811,122280.0,122270.0,0.45985222]
[1759850794207,0.2496811,122280.0,122270.0,0.46785222]
[1759850795327,0.2586811,122280.0,122270.0,0.46085222]
[1759850795550,0.2466811,122280.0,122270.0,0.45985222]
[1759850795747,0.2476811,122280.0,122270.0,0.46885222]
[1759850795959,0.2576811,122280.0,122270.0,0.46985222]
[1759850796411,0.2166811,122280.0,122270.0,0.36085222]
[1759850796584,0.2066811,122280.0,122270.0,0.45981222]
[1759850796802,0.2076811,122280.0,122270.0,0.46881222]
[1759850797005,0.2146811,122280.0,122270.0,0.14805222]
[1759850797171,0.2146811,122280.0,122270.0,0.46981222]
[1759850797526,0.2146811,122280.0,122270.0,0.38481222]
[1759850797776,1.48564445,122280.0,122270.0,0.23305222]
[1759850797995,1.48564445,122280.0,122270.0,0.01356248]
[1759850798201,2.22929845,122280.0,122270.0,0.01356248]
[1759850798568,2.22829845,122280.0,122270.0,0.00356248]
[1759850798770,2.22229845,122280.0,122270.0,0.01156248]
[1759850798983,0.50359918,122250.0,122240.0,0.085]
[1759850799335,0.50361256,122240.0,122230.0,0.0004]
[1759850799453,1.51669797,122240.0,122230.0,0.0004]
[1759850799667,1.51669797,122240.0,122230.0,0.05195695]
[1759850800005,1.52479625,122240.0,122230.0,0.05195695]
[1759850800303,1.52279625,122240.0,122230.0,0.00243695]
[1759850800455,1.52279625,122240.0,122230.0,0.00293913]
[1759850800901,1.75955625,122240.0,122230.0,0.00293913]
[1759850801332,1.52279625,122240.0,122230.0,0.00293913]
[1759850801527,1.75855625,122240.0,122230.0,0.00293913]
[1759850801811,1.52479625,122240.0,122230.0,0.00493913]
[1759850802046,1.76155625,122240.0,122230.0,0.00493913]
[1759850802246,1.52179625,122240.0,122230.0,0.00293913]
[1759850802402,2.87515725,122240.0,122230.0,0.00593913]
[1759850803160,0.16362595,122230.0,122220.0,1e-08]
[1759850803369,6.82738997,122230.0,122220.0,0.00036623]
[1759850803571,6.06767636,122230.0,122220.0,0.00036623]
[1759850803765,6.13318662,122230.0,122220.0,1e-08]
[1759850804291,7.12435635,122230.0,122220.0,1e-08]
[1759850804446,7.06414997,122230.0,122220.0,1e-08]
[1759850804659,6.99863971,122230.0,122220.0,1e-08]
[1759850804864,7.06114997,122230.0,122220.0,1e-08]
[1759850805175,0.50363933,122220.0,122210.0,1e-08]
[1759850805499,7.29221909,122220.0,122210.0,1e-08]
[1759850805704,6.59801574,122220.0,122210.0,1e-08]
[1759850805847,5.11750851,122220.0,122210.0,1e-08]
[1759850806253,4.88074851,122220.0,122210.0,1e-08]
[1759850806461,5.11750851,122220.0,122210.0,1e-08]
[1759850807368,5.18301877,122220.0,122210.0,1e-08]
[1759850807565,5.11750851,122220.0,122210.0,1e-08]
[1759850807778,5.19201877,122220.0,122210.0,1e-08]
[1759850807970,5.20201877,122220.0,122210.0,1e-08]
[1759850808170,5.19201877,122220.0,122210.0,1e-08]
[1759850808425,5.18301877,122220.0,122210.0,1e-08]
[1759850808842,0.50367951,122190.0,122180.0,1e-08]
[1759850809053,0.50369291,122180.0,122170.0,0.0004]
[1759850809262,0.50369291,122180.0,122170.0,1e-08]
[1759850809263,6.36330932,122180.0,122170.0,1e-08]
[1759850809690,6.38789072,122180.0,122170.0,1e-08]
[1759850809877,5.84427763,122180.0,122170.0,1e-08]
[1759850810089,6.45340098,122180.0,122170.0,1e-08]
[1759850810322,6.77524098,122180.0,122170.0,1e-08]
[1759850810487,6.77528098,122180.0,122170.0,1e-08]
[1759850810710,6.38789072,122180.0,122170.0,1e-08]
[1759850810908,2.68543472,122180.0,122170.0,1e-08]
[1759850811512,2.36355472,122180.0,122170.0,1e-08]
[1759850811726,1.93026072,122180.0,122170.0,1e-08]
[1759850812150,1.71046072,122180.0,122170.0,1e-08]
[1759850812325,0.43643037,122180.0,122170.0,1e-08]
[1759850812567,1.60419372,122180.0,122170.0,1e-08]
[1759850812791,0.52519637,122180.0,122170.0,1e-08]
[1759850812992,1.79615972,122180.0,122170.0,1e-08]
[1759850813101,0.52519637,122180.0,122170.0,1e-08]
[1759850813294,1.79615972,122180.0,122170.0,1e-08]
[1759850813563,0.86519637,122180.0,122170.0,1e-08]
[1759850813795,1.79615972,122180.0,122170.0,1e-08]
[1759850815376,0.86519637,122180.0,122170.0,1e-08]
[1759850815583,1.79615972,122180.0,122170.0,1e-08]
[1759850815785,1.79615972,122180.0,122170.0,0.00305744]
[1759850816884,0.86523637,122180.0,122170.0,0.00305744]
[1759850817094,1.31411394,122180.0,122170.0,0.03754718]
[1759850817301,0.86519637,122180.0,122170.0,0.03754718]
[1759850817515,1.52633254,122180.0,122170.0,0.06254718]
[1759850817736,0.52069291,122180.0,122170.0,0.25984349]
[1759850817949,0.52069291,122180.0,122170.0,0.06254718]
[1759850818370,1.20641048,122180.0,122170.0,0.06254718]
[1759850818549,0.50369291,122180.0,122170.0,0.09613718]
[1759850818724,0.51169291,122180.0,122170.0,0.06254718]
[1759850818937,0.51769291,122180.0,122170.0,0.06254718]
[1759850819139,1.19741048,122180.0,122170.0,0.06254718]
[1759850819400,1.19541048,122180.0,122170.0,0.06254718]
[1759850819806,1.19541048,122180.0,122170.0,0.22625349]
[1759850820029,1.19541048,122180.0,122170.0,0.26124349]
[1759850820246,0.346,122180.0,122170.0,0.26124349]
[1759850820475,0.006,122180.0,122170.0,0.63594349]
[1759850820671,0.40866116,122200.0,122180.0,0.16368211]
[1759850820843,0.16367951,122190.0,122180.0,0.19818265]
[1759850821073,0.93251914,122190.0,122180.0,0.03448974]
[1759850821324,0.16369291,122180.0,122170.0,0.02500001]
[1759850821466,0.85541048,122180.0,122170.0,0.05948975]
[1759850821665,0.82961497,122180.0,122170.0,0.00305744]
[1759850821848,1.51533254,122180.0,122170.0,0.03754718]
[1759850822051,2.20105011,122180.0,122170.0,0.00305744]
[1759850822251,1.89052254,122180.0,122170.0,0.00305744]
[1759850822470,1.88452254,122180.0,122170.0,0.00305744]
[1759850822787,1.89052254,122180.0,122170.0,0.00305744]
[1759850823215,2.57624011,122180.0,122170.0,0.00305744]
[1759850823547,1.89052254,122180.0,122170.0,0.00305744]
[1759850824206,2.57624011,122180.0,122170.0,0.00305744]
[1759850824416,2.57724011,122180.0,122170.0,1e-08]
[1759850824626,2.64702197,122180.0,122170.0,1e-08]
[1759850824871,2.65202197,122180.0,122170.0,1e-08]
[1759850825074,2.64002197,122180.0,122170.0,1e-08]
[1759850825420,2.65002197,122180.0,122170.0,1e-08]
[1759850825624,2.65502197,122180.0,122170.0,1e-08]
[1759850825798,2.64502197,122180.0,122170.0,1e-08]
[1759850826173,2.65702197,122180.0,122170.0,1e-08]
[1759850826389,0.26308657,122180.0,122170.0,1e-08]
[1759850826658,0.25881497,122180.0,122170.0,0.05948975]
[1759850826931,1.28453254,122180.0,122170.0,0.05948975]
[1759850827116,0.94453254,122180.0,122170.0,0.05948975]
[1759850827316,1.28453254,122180.0,122170.0,0.05948975]
[1759850827499,1.27253254,122180.0,122170.0,0.05948975]
[1759850827703,0.25181497,122180.0,122170.0,0.05948975]
[1759850827915,0.94653254,122180.0,122170.0,0.06048975]
[1759850828123,1.28653254,122180.0,122170.0,0.06048975]
[1759850828760,1.27253254,122180.0,122170.0,0.05948975]
[1759850828970,1.27853254,122180.0,122170.0,0.05948975]
[1759850829188,1.28953254,122180.0,122170.0,0.06048975]
[1759850829393,0.60381497,122180.0,122170.0,0.06048975]
[1759850830404,0.60381497,122180.0,122170.0,0.03548975]
[1759850830405,1.52629254,122180.0,122170.0,0.03548975]
[1759850830626,1.55086804,122180.0,122170.0,0.03548975]
[1759850831793,1.55086804,122180.0,122170.0,0.00100001]
[1759850831991,1.55086804,122180.0,122170.0,0.03548975]
[1759850833214,2.12596904,122180.0,122170.0,0.03548975]
[1759850833414,2.12596904,122180.0,122170.0,0.00100001]
[1759850835051,2.12596904,122180.0,122170.0,0.06048975]
[1759850835052,0.62839047,122180.0,122170.0,0.06048975]
[1759850835264,0.18069291,122180.0,122170.0,0.06048975]
[1759850835492,0.017,122180.0,122170.0,0.49909606]
[1759850835706,0.017,122180.0,122170.0,0.6998574]
[1759850835863,0.017,122180.0,122170.0,0.48020812]
[1759850836065,0.017,122180.0,122170.0,0.71696812]
[1759850836325,0.017,122180.0,122170.0,0.80208812]
[1759850836991,0.006,122180.0,122170.0,0.80108812]
[1759850837169,0.013,122180.0,122170.0,0.80208812]
[1759850837502,0.013,122180.0,122170.0,0.80204812]
[1759850837705,0.006,122180.0,122170.0,0.80104812]
[1759850837937,0.17182158,122220.0,122200.0,0.16365657]
[1759850838159,0.17182158,122220.0,122210.0,0.27124974]
[1759850838370,0.17182158,122220.0,122210.0,0.03448974]
[1759850838548,0.51182158,122220.0,122210.0,0.35632974]
[1759850839298,0.5123236,122220.0,122210.0,0.35632974]
[1759850839565,0.5183236,122220.0,122210.0,0.35632974]
[1759850840189,0.5273236,122220.0,122210.0,0.35632974]
[1759850840378,0.5273236,122220.0,122210.0,0.03448974]
[1759850840613,0.5273236,122220.0,122210.0,0.29624974]
[1759850840614,0.5183236,122220.0,122210.0,0.29624974]
[1759850841011,0.5283236,122220.0,122210.0,0.29624974]
[1759850841208,0.5283236,122220.0,122210.0,0.29578054]
[1759850841425,0.5283236,122220.0,122210.0,0.05906054]
[1759850842104,0.5283236,122220.0,122210.0,0.29578054]
[1759850843575,0.53121471,122220.0,122210.0,0.29578054]
[1759850844312,0.53121471,122220.0,122210.0,0.05906054]
[1759850844522,0.53121471,122220.0,122210.0,0.29578054]
[1759850845866,0.53121471,122220.0,122210.0,0.05906054]
[1759850846021,1.21693228,122220.0,122210.0,0.05906054]
[1759850846228,1.21693228,122220.0,122210.0,0.29578054]
[1759850846626,1.30005434,122220.0,122210.0,0.29574054]
[1759850846842,1.30005434,122220.0,122210.0,0.025]
[1759850847030,1.30005434,122220.0,122210.0,0.29574054]
[1759850847599,1.30005434,122220.0,122210.0,0.29539236]
[1759850849184,0.61433677,122220.0,122210.0,0.29539236]
[1759850849661,1.30005434,122220.0,122210.0,0.29539236]
[1759850849858,1.30005434,122220.0,122210.0,0.03406054]
[1759850850064,0.50365272,122210.0,122200.0,0.13231236]
[1759850850370,0.58677478,122210.0,122200.0,0.13231236]
[1759850850919,1.27249235,122210.0,122200.0,0.13231236]
[1759850851631,1.27949235,122210.0,122200.0,0.13231236]
[1759850851840,0.59377478,122210.0,122200.0,0.13231236]
[1759850852279,1.27949235,122210.0,122200.0,0.13231236]
[1759850852568,1.27949235,122210.0,122200.0,0.05871236]
[1759850852778,0.60377478,122210.0,122200.0,0.29539236]
[1759850853035,0.52065272,122210.0,122200.0,0.29539236]
[1759850853659,0.017,122210.0,122200.0,0.60593848]
[1759850853867,0.017,122210.0,122200.0,0.62628848]
[1759850854288,0.017,122210.0,122200.0,0.57681848]
[1759850854505,0.017,122210.0,122200.0,0.62628848]
[1759850854713,0.017,122210.0,122200.0,0.70941054]
[1759850854948,0.017,122210.0,122200.0,0.79449054]
[1759850855635,0.01938181,122210.0,122200.0,0.79449054]
[1759850856832,0.00938181,122210.0,122200.0,0.79449054]
[1759850857259,0.00338181,122210.0,122200.0,0.79549054]
[1759850857611,0.01138181,122210.0,122200.0,0.87548734]
[1759850858025,0.00338181,122210.0,122200.0,0.87548734]
[1759850858229,0.01138181,122210.0,122200.0,0.87548734]
[1759850858404,0.01138181,122210.0,122200.0,1.19571785]
[1759850858565,0.00338181,122210.0,122200.0,1.19571785]
[1759850858776,0.00938181,122210.0,122200.0,1.19471785]
[1759850858952,0.00938181,122210.0,122200.0,0.89795785]
[1759850859149,0.00938181,122210.0,122200.0,1.63999465]
[1759850859360,0.01238181,122210.0,122200.0,1.64099465]
[1759850859972,1e-08,122210.0,122200.0,1.63999465]
[1759850860191,0.00600001,122210.0,122200.0,1.89897065]
[1759850860395,0.00050202,122220.0,122210.0,0.56236508]
[1759850860665,0.00050202,122220.0,122210.0,0.85920394]
[1759850860882,0.00050202,122220.0,122210.0,0.89312394]
[1759850861879,0.00050202,122220.0,122210.0,1.55504394]
[1759850862281,1e-08,122220.0,122210.0,2.24486694]
[1759850862796,1e-08,122220.0,122210.0,1.01812394]
[1759850862995,1e-08,122220.0,122210.0,2.22035394]
[1759850863569,1e-08,122220.0,122210.0,2.21935394]
[1759850863978,0.16356119,122280.0,122270.0,0.22228478]
[1759850864177,0.16356119,122280.0,122270.0,0.54407528]
[1759850864178,0.16355904,122280.0,122270.0,0.54407528]
[1759850864385,0.16355904,122280.0,122270.0,0.6630909]
[1759850864815,0.16355904,122280.0,122270.0,0.35933848]
[1759850865131,0.16355904,122280.0,122270.0,0.6079509]
[1759850865354,0.16355904,122280.0,122270.0,0.6630909]
[1759850865515,0.16355904,122280.0,122270.0,0.49951848]
[1759850865959,0.16355904,122280.0,122270.0,0.6630909]
[1759850866133,0.16355904,122280.0,122270.0,0.6291709]
[1759850866471,0.18855904,122280.0,122270.0,0.29942286]
[1759850866620,0.18855904,122280.0,122270.0,0.38446286]
[1759850868696,0.18855904,122280.0,122270.0,0.06286286]
[1759850868895,0.18855904,122280.0,122270.0,0.38442286]
[1759850869479,1.21427661,122280.0,122270.0,0.26532232]
[1759850869903,1.21427661,122280.0,122270.0,0.29938286]
[1759850870342,1.20827661,122280.0,122270.0,0.29838286]
[1759850870730,1.18927661,122280.0,122270.0,0.29538286]
[1759850870974,1.22027661,122280.0,122270.0,0.29938286]
[1759850871305,1.18927661,122280.0,122270.0,0.29538286]
[1759850871503,1.19284061,122280.0,122270.0,0.29538286]
[1759850871704,1.19784061,122280.0,122270.0,0.29638286]
[1759850872054,1.19784061,122280.0,122270.0,0.05986286]
[1759850872211,1.19784061,122280.0,122270.0,0.26132232]
[1759850872212,1.27596267,122280.0,122270.0,0.26132232]
[1759850872417,1.28296267,122280.0,122270.0,0.29638286]
[1759850872644,1.30996267,122280.0,122270.0,0.30038286]
[1759850872847,0.6242451,122280.0,122270.0,0.30038286]
[1759850873051,1.30996267,122280.0,122270.0,0.30038286]
[1759850874824,0.6242451,122280.0,122270.0,0.30038286]
[1759850875023,1.30996267,122280.0,122270.0,0.30038286]
[1759850875819,1.30996267,122280.0,122270.0,0.26632232]
[1759850876068,2.22111924,122280.0,122270.0,0.0051505]
[1759850876742,2.22111924,122280.0,122270.0,0.0011505]
[1759850876951,0.8226841,122280.0,122270.0,0.0011505]
[1759850877159,1.78025364,122280.0,122270.0,0.0041505]
[1759850877357,1.75525364,122280.0,122270.0,0.0011505]
[1759850877560,1.74825364,122280.0,122270.0,0.0001505]
[1759850877759,1.77925364,122280.0,122270.0,0.0041505]
[1759850877947,1.78525364,122280.0,122270.0,0.0051505]
[1759850878374,2.01573364,122280.0,122270.0,0.0041505]
[1759850878886,2.02573364,122280.0,122270.0,0.0051505]
[1759850880272,0.6312451,122280.0,122270.0,0.0051505]
[1759850880479,0.2912451,122280.0,122270.0,0.06386286]
[1759850880737,0.20812304,122280.0,122270.0,0.30034286]
[1759850881086,0.20812304,122280.0,122270.0,0.60478528]
[1759850881430,0.20812304,122280.0,122270.0,0.52120966]
[1759850881664,0.54812304,122280.0,122270.0,0.65025208]
[1759850881794,0.54812304,122280.0,122270.0,0.48667966]
[1759850882195,0.54816304,122280.0,122270.0,0.52120966]
[1759850882444,0.54816304,122280.0,122270.0,0.38538286]
[1759850887182,0.54816304,122280.0,122270.0,0.30030286]
[1759850887183,1.48073258,122280.0,122270.0,0.30030286]
[1759850887392,1.88630064,122280.0,122270.0,0.0051505]
[1759850888422,0.9537311,122280.0,122270.0,0.0051505]
[1759850888686,1.88630064,122280.0,122270.0,0.0051505]
[1759850889549,1.88630064,122280.0,122270.0,1e-08]
[1759850889974,1.94770886,122280.0,122270.0,1e-08]
[1759850890886,0.50359918,122250.0,122240.0,0.09942803]
[1759850891120,1.75573078,122250.0,122240.0,0.06551814]
[1759850891344,2.02503478,122250.0,122240.0,0.06551814]
[1759850891574,2.02503478,122250.0,122240.0,0.00015065]
[1759850892407,2.03103478,122250.0,122240.0,0.00015065]
[1759850893239,2.02507478,122250.0,122240.0,0.00015065]
[1759850893456,1.78863478,122250.0,122240.0,0.00015065]
[1759850893666,2.03407478,122250.0,122240.0,0.00015065]
[1759850893890,1.80463478,122250.0,122240.0,0.00015065]
[1759850894144,2.04107478,122250.0,122240.0,0.00015065]
[1759850894498,1.80463478,122250.0,122240.0,0.00015065]
[1759850894762,2.04107478,122250.0,122240.0,0.00015065]
[1759850895906,1.43622226,122210.0,122200.0,0.09087252]
[1759850896230,1.75578432,122210.0,122200.0,0.09137454]
[1759850896431,2.73846832,122210.0,122200.0,0.00135523]
[1759850896766,2.21112732,122210.0,122200.0,0.00135523]
[1759850897314,2.01278232,122210.0,122200.0,0.00135523]
[1759850897720,2.03735181,122210.0,122200.0,0.00135523]
[1759850897929,2.02935181,122210.0,122200.0,0.00135523]
[1759850898327,1.81004086,122210.0,122200.0,0.00135523]
[1759850898567,1.96458286,122210.0,122200.0,0.00135523]
[1759850898792,1.94887686,122210.0,122200.0,0.00135523]
[1759850898996,1.79748286,122210.0,122200.0,0.00135523]
[1759850899171,1.91157986,122210.0,122200.0,0.00135523]
[1759850899521,1.80548286,122210.0,122200.0,0.00135523]
[1759850899872,1.05474032,122210.0,122200.0,0.00135523]
[1759850900093,1.80548286,122210.0,122200.0,0.00135523]
[1759850900307,1.56904286,122210.0,122200.0,0.00135523]
[1759850900636,0.76526177,122210.0,122200.0,0.06006759]
[1759850901309,1.69783131,122210.0,122200.0,0.06006759]
[1759850901519,1.78095337,122210.0,122200.0,0.06006759]
[1759850901695,1.78099337,122210.0,122200.0,0.06006759]
[1759850903124,1.78099337,122210.0,122200.0,0.03541577]
[1759850904231,1.78099337,122210.0,122200.0,0.00135523]
[1759850904388,2.36757037,122210.0,122200.0,0.00135523]
[1759850905130,2.35857037,122210.0,122200.0,0.00135523]
[1759850905455,2.35957037,122210.0,122200.0,0.00135523]
[1759850905683,1.91679437,122210.0,122200.0,0.00135523]
[1759850905957,1.90779437,122210.0,122200.0,0.00135523]
[1759850906137,1.69211437,122210.0,122200.0,0.00135523]
[1759850906341,1.88589137,122210.0,122200.0,0.00135523]
[1759850906591,1.89489137,122210.0,122200.0,0.00135523]
[1759850906802,1.91946337,122210.0,122200.0,0.00135523]
[1759850908027,0.98689383,122210.0,122200.0,0.00135523]
[1759850908337,1.90246337,122210.0,122200.0,0.00135523]
[1759850908691,1.91946337,122210.0,122200.0,0.00135523]
[1759850908895,1.91146337,122210.0,122200.0,0.00135523]
[1759850909092,1.90246337,122210.0,122200.0,0.00135523]
[1759850909324,1.91046337,122210.0,122200.0,1e-08]
[1759850909529,1.98640283,122210.0,122200.0,1e-08]
[1759850910215,2.03550283,122210.0,122200.0,1e-08]
[1759850910379,2.02585101,122210.0,122200.0,1e-08]
[1759850910786,2.45129101,122210.0,122200.0,1e-08]
[1759850910944,2.44329101,122210.0,122200.0,1e-08]
[1759850911141,2.02585101,122210.0,122200.0,1e-08]
[1759850911351,2.45129101,122210.0,122200.0,1e-08]
[1759850911559,2.44329101,122210.0,122200.0,1e-08]
[1759850911798,1.79937101,122210.0,122200.0,1e-08]
[1759850911998,2.46129101,122210.0,122200.0,1e-08]
[1759850912175,2.45029101,122210.0,122200.0,1e-08]
[1759850912779,1.78802283,122210.0,122200.0,1e-08]
[1759850913041,1.68698337,122210.0,122200.0,1e-08]
[1759850913213,2.12393101,122210.0,122200.0,1e-08]
[1759850914068,1.80202283,122210.0,122200.0,1e-08]
[1759850914406,1.80237101,122210.0,122200.0,1e-08]
[1759850914635,2.46437101,122210.0,122200.0,1e-08]
[1759850915703,2.44337101,122210.0,122200.0,1e-08]
[1759850915909,1.43627585,122170.0,122160.0,1e-08]
[1759850916036,6.68652891,122170.0,122160.0,8.185e-05]
[1759850916435,6.71111261,122170.0,122160.0,1e-08]
[1759850917323,6.7710294,122170.0,122160.0,1e-08]
[1759850917682,6.6859494,122170.0,122160.0,1e-08]
[1759850917920,2.9898874,122170.0,122160.0,1e-08]
[1759850918120,3.3194874,122170.0,122160.0,1e-08]
[1759850918347,3.3114874,122170.0,122160.0,1e-08]
[1759850918777,2.9088904,122170.0,122160.0,1e-08]
[1759850919165,3.2304904,122170.0,122160.0,1e-08]
[1759850920194,4.21215994,122170.0,122160.0,1e-08]
[1759850920393,0.50373311,122150.0,122140.0,1e-08]
[1759850920594,7.53404525,122150.0,122140.0,0.00015055]
[1759850921145,7.55863141,122150.0,122140.0,0.00117024]
[1759850922205,7.56963141,122150.0,122140.0,0.00117024]
[1759850922429,7.57763141,122150.0,122140.0,0.00117024]
[1759850922846,7.50975541,122150.0,122140.0,0.00117024]
[1759850923051,3.91578787,122150.0,122140.0,0.00117024]
[1759850923246,2.14736687,122150.0,122140.0,0.00117024]
[1759850923461,2.24048687,122150.0,122140.0,0.00117024]
[1759850924331,2.25148687,122150.0,122140.0,0.00117024]
[1759850924816,2.24348687,122150.0,122140.0,0.00117024]
[1759850925027,2.24048687,122150.0,122140.0,0.00117024]
[1759850925241,2.25148687,122150.0,122140.0,0.00117024]
[1759850925652,2.16636687,122150.0,122140.0,0.00117024]
[1759850925859,2.25148687,122150.0,122140.0,0.00117024]
[1759850926071,3.18405641,122150.0,122140.0,0.00117024]
[1759850926521,3.18832875,122150.0,122140.0,0.00117024]
[1759850927375,1.92307921,122150.0,122140.0,0.00117024]
[1759850927502,1.90109221,122150.0,122140.0,0.00117024]
[1759850927711,0.87767767,122150.0,122140.0,0.00117024]
[1759850927924,1.22728321,122150.0,122140.0,0.00117024]
[1759850928127,1.44484321,122150.0,122140.0,0.00117024]
[1759850928366,1.78484321,122150.0,122140.0,0.00117024]
[1759850928564,2.26654621,122150.0,122140.0,0.00117024]
[1759850928841,1.96737021,122150.0,122140.0,0.00117024]
[1759850928966,1.46484321,122150.0,122140.0,0.00117024]
[1759850929164,1.80484321,122150.0,122140.0,0.00117024]
[1759850929829,1.94578421,122150.0,122140.0,0.00117024]
[1759850930595,1.94582421,122150.0,122140.0,0.00117024]
[1759850931839,1.70926421,122150.0,122140.0,0.02582206]
[1759850932030,1.94582421,122150.0,122140.0,0.0598826]
[1759850932229,1.96206821,122150.0,122140.0,0.0598826]
[1759850932463,1.62206821,122150.0,122140.0,0.0598826]
[1759850932665,1.96206821,122150.0,122140.0,0.0598826]
[1759850932870,1.95406821,122150.0,122140.0,0.0598826]
[1759850933119,1.02149867,122150.0,122140.0,0.0598826]
[1759850933748,1.00949867,122150.0,122140.0,0.0598826]
[1759850933875,1.95006821,122150.0,122140.0,0.0598826]
[1759850934083,0.85604133,122150.0,122140.0,0.0598826]
[1759850934284,0.84804133,122150.0,122140.0,0.0598826]
[1759850934485,0.61148133,122150.0,122140.0,0.0598826]
[1759850934680,0.85804133,122150.0,122140.0,0.0598826]
[1759850934868,0.86504133,122150.0,122140.0,0.0598826]
[1759850935108,0.51804133,122150.0,122140.0,0.0598826]
[1759850935276,0.52304133,122150.0,122140.0,0.0598826]
[1759850936596,0.20335927,122150.0,122140.0,0.25598912]
[1759850936840,0.17877311,122150.0,122140.0,0.25598912]
[1759850937456,0.51877311,122150.0,122140.0,0.0922426]
[1759850937654,0.35504,122150.0,122140.0,0.25598912]
[1759850937798,0.51877311,122150.0,122140.0,0.25598912]
[1759850938024,0.01504,122150.0,122140.0,0.43292679]
[1759850938226,0.01504,122150.0,122140.0,0.38416912]
[1759850938441,0.01504,122150.0,122140.0,0.62072912]
[1759850939054,0.01504,122150.0,122140.0,0.70385118]
[1759850939270,0.01004,122150.0,122140.0,0.70385118]
[1759850939479,0.01604,122150.0,122140.0,0.70385118]
[1759850939684,0.006,122150.0,122140.0,0.78384798]
[1759850940097,0.007,122150.0,122140.0,0.78384798]
[1759850940515,0.006,122150.0,122140.0,0.86892798]
[1759850940936,0.013,122150.0,122140.0,0.86892798]
[1759850941155,0.013,122150.0,122140.0,0.54728798]
[1759850941388,0.013,122150.0,122140.0,0.86892798]
[1759850941744,0.013,122150.0,122140.0,0.78380798]
[1759850941953,0.013,122150.0,122140.0,0.46729118]
[1759850942172,0.013,122150.0,122140.0,0.78893118]
[1759850942383,0.013,122150.0,122140.0,0.65516118]
[1759850942590,0.013,122150.0,122140.0,0.46856118]
[1759850942825,0.013,122150.0,122140.0,0.70508118]
[1759850942951,0.013,122150.0,122140.0,0.87019798]
[1759850944611,0.013,122150.0,122140.0,0.54855798]
[1759850944809,0.013,122150.0,122140.0,0.79016118]
[1759850945230,0.013,122150.0,122140.0,0.41864118]
[1759850945429,0.013,122150.0,122140.0,0.65512118]
[1759850945631,0.013,122150.0,122140.0,0.41864118]
[1759850945846,0.013,122150.0,122140.0,0.46856118]
[1759850946224,0.013,122150.0,122140.0,0.79016118]
[1759850947101,0.013,122150.0,122140.0,0.46856118]
[1759850947298,0.013,122150.0,122140.0,0.79016118]
[1759850947518,0.013,122150.0,122140.0,0.46856118]
[1759850947718,0.013,122150.0,122140.0,0.79016118]
[1759850948130,0.01304,122150.0,122140.0,0.79016118]